fUST/lending_fUST_20251114
["ID","MTS","AMOUNT","RATE_DAILY","PERIOD"]
[393867374,1763049603384,771.0,0.000327,2]
[393867375,1763049604447,150.0,0.00034392,2]
[393867376,1763049605094,150.0,0.00037518,2]
[393867378,1763049618273,400.28388004,0.00039,2]
[393867385,1763049670460,150.0,0.00034392,2]
[393867386,1763049671334,150.0,0.00037519,2]
[393867387,1763049717882,2999.999999,0.0004,2]
[393867388,1763049735841,150.0,0.00034393,2]
[393867513,1763049993935,150.0,0.00032579,2]
[393867514,1763050008119,-165.0,0.000402,120]
[393867515,1763050008139,-214.79032911,0.00040556,2]
[393867516,1763050008161,-168.0,0.00042104,2]
[393867517,1763050008181,-422.72985167,0.00042514,2]
[393867518,1763050008204,-168.0,0.0004253,2]
[393867519,1763050008226,-168.0,0.00042842,7]
[393867520,1763050008250,-168.0,0.00043195,7]
[393867521,1763050008271,-400.28388004,0.00043498,2]
[393867522,1763050008295,-168.0,0.00043518,2]
[393867523,1763050008317,-1200.0,0.00043554,5]
[393867524,1763050008341,-300.0,0.00043555,5]
[393867525,1763050008362,-550.0,0.00043555,5]
[393867526,1763050008382,-1200.0,0.00043556,5]
[393867527,1763050008402,-899.49641347,0.00043557,2]
[393867554,1763050092587,152.0,0.00035,120]
[393867586,1763050232728,-152.0,0.000402,120]
[393867587,1763050232738,-505.22739713,0.00043557,2]
[393867588,1763050232748,-168.0,0.00043832,2]
[393867589,1763050232758,-168.0,0.00044061,2]
[393867590,1763050232767,-400.28388004,0.00044794,2]
[393867591,1763050232777,-168.0,0.00044797,2]
[393867592,1763050232786,-176.874,0.00044797,72]
[393867593,1763050232795,-150.0,0.00044797,120]
[393867594,1763050232805,-168.0,0.0004484,7]
[393867595,1763050232814,-168.0,0.0004508,2]
[393867596,1763050232824,-600.0,0.00045315,90]
[393867597,1763050232834,-150.0,0.0004542,5]
[393867598,1763050232843,-395.0990739,0.00045421,30]
[393867599,1763050232853,-191.1935952,0.00045421,30]
[393867600,1763050232862,-395.0990739,0.00045421,30]
[393867601,1763050232871,-191.1935952,0.00045421,30]
[393867602,1763050232880,-395.0990739,0.00045421,30]
[393867603,1763050232890,-191.1935952,0.00045421,30]
[393867604,1763050232899,-395.0990739,0.00045421,30]
[393867605,1763050232909,-395.0990739,0.00045421,30]
[393867606,1763050232919,-152.0,0.000455,120]
[393867607,1763050232928,-168.0,0.00045955,2]
[393867608,1763050232937,-168.0,0.00046028,2]
[393867609,1763050232947,-168.0,0.0004613,2]
[393867610,1763050232956,-200.0,0.00046767,120]
[393867611,1763050232965,-177.0,0.00046797,120]
[393867612,1763050232976,-157.6,0.00047123,120]
[393867613,1763050232988,-656.88598563,0.00048076,2]
[393867614,1763050233000,-417.93636814,0.00048076,2]
[393867615,1763050233011,-329.90145683,0.00048076,2]
[393867616,1763050233024,-21.5957917,0.00048797,120]
[393867617,1763050233043,-182.4042083,0.00048797,120]
[393867618,1763050233054,-377.76212524,0.00049846,90]
[393867633,1763050238873,-316.0,0.00045973,2]
[393867634,1763050238883,-342.23787476,0.00049846,90]
[393867635,1763050238894,-152.0,0.000507,120]
[393867636,1763050238904,-219.76212524,0.00050797,120]
[393867650,1763050241098,-11.23787476,0.00050797,120]
[393867651,1763050241108,-202.69786,0.000517,120]
[393867652,1763050241117,-200.0,0.000517,120]
[393867653,1763050241127,-199.77809258,0.0005265,120]
[393867654,1763050241149,-0.22190742,0.0005265,120]
[393867655,1763050241158,-258.0,0.00052797,120]
[393867656,1763050241170,-200.0,0.00053712,120]
[393867657,1763050241180,-209.0,0.0005379,30]
[393867658,1763050241190,-26.41096628,0.000539,120]
[393867659,1763050241201,-173.58903372,0.000539,120]
[393867660,1763050241211,-316.17,0.00054784,30]
[393867661,1763050241221,-263.47,0.00054784,30]
[393867662,1763050241233,-219.56,0.00054784,30]
[393867663,1763050241243,-182.97,0.00054784,30]
[393867664,1763050241252,-152.47,0.00054784,30]
[393867665,1763050241261,-762.4,0.00054784,30]
[393867666,1763050241271,-491.63051284,0.00054793,7]
[393867667,1763050241280,-171.60414086,0.00054794,120]
[393867668,1763050241289,-500.0,0.00054794,120]
[393867669,1763050241298,-283.47486886,0.00054794,120]
[393867670,1763050241308,-205.73127872,0.00054794,120]
[393867683,1763050244073,-37.77530359,0.00054794,120]
[393867684,1763050244082,-397.96481138,0.00054794,120]
[393867685,1763050244091,-252.29327106,0.00054794,120]
[393867694,1763050244242,-186.46372179,0.00054794,120]
[393867695,1763050244252,-228.16535412,0.00054794,120]
[393867696,1763050244262,-432.56287996,0.00054794,120]
[393867697,1763050244271,-152.80804413,0.00054794,120]
[393867698,1763050244283,-253.24361086,0.00054794,120]
[393867699,1763050244302,-259.63342201,0.00054794,120]
[393867700,1763050244311,-463.41794701,0.00054794,120]
[393867701,1763050244321,-270.60654229,0.00054794,120]
[393867702,1763050244330,-448.74889116,0.00054794,120]
[393867703,1763050244340,-396.6854998,0.00054794,120]
[393867704,1763050244350,-441.17649512,0.00054794,120]
[393867705,1763050244360,-374.42401255,0.00054794,120]
[393867706,1763050244369,-392.58806257,0.00054794,120]
[393867707,1763050244378,-244.0908873,0.00054794,120]
[393867708,1763050244387,-251.10250933,0.00054794,120]
[393867709,1763050244397,-235.41567982,0.00054794,120]
[393867710,1763050244406,-436.39743075,0.00054794,120]
[393867711,1763050244415,-417.74331251,0.00054794,120]
[393867712,1763050244424,-497.16036616,0.00054794,120]
[393867713,1763050244434,-295.75790561,0.00054794,120]
[393867714,1763050244443,-200.78005949,0.00054794,120]
[393867715,1763050244452,-460.38802428,0.00054794,120]
[393867716,1763050244461,-436.39578458,0.00054794,120]
[393867717,1763050244470,-459.95790833,0.00054794,120]
[393867718,1763050244480,-494.09147896,0.00054794,120]
[393867719,1763050244490,-385.67840224,0.00054794,120]
[393867720,1763050244501,-296.35187345,0.00054794,120]
[393867721,1763050244510,-169.09826978,0.00054794,120]
[393867722,1763050244519,-497.91579353,0.00054794,120]
[393867723,1763050244529,-365.35254108,0.00054794,120]
[393867724,1763050244539,-262.19457431,0.00054794,120]
[393867725,1763050244548,-488.72146272,0.00054794,120]
[393867726,1763050244557,-425.35419422,0.00054794,120]
[393867727,1763050244566,-484.01423901,0.00054794,120]
[393867728,1763050244576,-251.13729662,0.00054794,120]
[393867729,1763050244585,-153.0,0.00054795,120]
[393867730,1763050244595,-153.0,0.00054795,120]
[393867731,1763050244604,-153.0,0.00054795,120]
[393867732,1763050244613,-153.0,0.00054795,120]
[393867733,1763050244622,-153.0,0.00054795,120]
[393867734,1763050244632,-153.0,0.00054795,120]
[393867735,1763050244641,-153.0,0.00054795,120]
[393867736,1763050244650,-153.0,0.00054795,120]
[393867737,1763050244659,-153.0,0.00054795,120]
[393867738,1763050244669,-153.0,0.00054795,120]
[393867739,1763050244678,-153.0,0.00054795,120]
[393867740,1763050244688,-153.0,0.00054795,120]
[393867741,1763050244697,-153.0,0.00054795,120]
[393867742,1763050244706,-153.0,0.00054795,120]
[393867743,1763050244715,-153.0,0.00054795,120]
[393867744,1763050244725,-153.0,0.00054795,120]
[393867745,1763050244735,-285.0,0.00054797,120]
[393867746,1763050244744,-181.0,0.00055,61]
[393867747,1763050244754,-423.0,0.00055,120]
[393867748,1763050244763,-500.0,0.00055068,120]
[393867749,1763050244773,-500.0,0.00055089,7]
[393867750,1763050244782,-160.90860063,0.00055089,120]
[393867751,1763050244791,-159.8489467,0.00055089,120]
[393867752,1763050244800,-500.0,0.00055089,120]
[393867753,1763050244809,-500.0,0.00055089,7]
[393867754,1763050244818,-500.0,0.00055089,7]
[393867755,1763050244828,-500.0,0.00055089,120]
[393867756,1763050244838,-500.0,0.00055089,120]
[393867757,1763050244847,-500.0,0.00055089,7]
[393867758,1763050244856,-500.0,0.00055089,120]
[393867759,1763050244866,-500.0,0.00055089,7]
[393867760,1763050244875,-500.0,0.00055089,7]
[393867761,1763050244884,-233.46443394,0.00055089,120]
[393867762,1763050244894,-500.0,0.00055089,7]
[393867763,1763050244904,-500.0,0.00055089,120]
[393867764,1763050244914,-500.0,0.00055089,7]
[393867765,1763050244924,-500.0,0.00055089,120]
[393867766,1763050244934,-500.0,0.00055089,7]
[393867767,1763050244943,-500.0,0.00055089,7]
[393867768,1763050244953,-500.0,0.00055089,120]
[393867769,1763050244962,-500.0,0.00055089,7]
[393867770,1763050244972,-500.0,0.00055089,120]
[393867771,1763050244982,-433.98904878,0.00055089,7]
[393867772,1763050244995,-500.0,0.00055089,120]
[393867773,1763050245005,-500.0,0.00055089,7]
[393867774,1763050245014,-500.0,0.00055089,120]
[393867775,1763050245023,-500.0,0.00055089,7]
[393867776,1763050245034,-209.0,0.0005509,120]
[393867777,1763050245043,-600.0,0.00055889,120]
[393867778,1763050245052,-152.0,0.00056,120]
[393867779,1763050245063,-200.0,0.000561,120]
[393867780,1763050245072,-209.0,0.000564,120]
[393867781,1763050245081,-384.47033223,0.000566,120]
[393867782,1763050245090,-157.087834,0.00056723,5]
[393867783,1763050245100,-209.0,0.000577,120]
[393867784,1763050245109,-211.0,0.000577,120]
[393867785,1763050245118,-200.0,0.000583,120]
[393867786,1763050245129,-209.0,0.00059,120]
[393867787,1763050245139,-211.0,0.00059,120]
[393867788,1763050245148,-421.25,0.0005977,30]
[393867789,1763050245158,-2000.0,0.0006,120]
[393867790,1763050245167,-219.48915562,0.0006011,120]
[393867791,1763050245176,-200.0,0.000605,120]
[393867792,1763050245186,-219.48915562,0.00060877,120]
[393867793,1763050245195,-152.0,0.000612,120]
[393867794,1763050245204,-720.0,0.00061478,120]
[393867795,1763050245213,-200.0,0.000627,120]
[393867796,1763050245222,-258.34811766,0.00063013,30]
[393867867,1763050247134,-38.4409169,0.00063013,30]
[393867868,1763050247144,-157.087834,0.0006399,5]
[393867869,1763050247154,-200.0,0.000649,120]
[393867870,1763050247163,-197.63131996,0.00065,120]
[393867871,1763050247175,-2802.36868004,0.00065,120]
[393867872,1763050247184,-152.0,0.000665,120]
[393867873,1763050247193,-255.01535,0.000671,120]
[393867874,1763050247202,-457.0,0.00067626,120]
[393867875,1763050247211,-157.087834,0.00067796,2]
[393867876,1763050247220,-5000.0,0.0007,120]
[393867877,1763050247230,-4000.0,0.000702,120]
[393867878,1763050247239,-4000.0,0.000712,120]
[393867879,1763050247249,-152.0,0.000718,120]
[393867880,1763050247258,-200.0,0.00072053,120]
[393867881,1763050247268,-3092.52813596,0.000722,120]
[393867882,1763050247284,-907.47186404,0.000722,120]
[393867883,1763050247293,-5000.0,0.000732,120]
[393867884,1763050247302,-4235.51533596,0.000742,120]
[393867885,1763050247313,-764.48466404,0.000742,120]
[393867886,1763050247322,-157.087834,0.0007472,7]
[393867887,1763050247332,-6457.7903819,0.00074935,7]
[393867888,1763050247341,-1000.0,0.00075,120]
[393867889,1763050247350,-5000.0,0.00075,120]
[393867890,1763050247359,-237.91,0.00075,14]
[393867891,1763050247368,-5000.0,0.000752,120]
[393867892,1763050247377,-273.97880141,0.00075222,6]
[393867893,1763050247387,-1178.04544267,0.00075298,2]
[393867894,1763050247396,-4000.0,0.000762,120]
[393867895,1763050247405,-175.22,0.00077,60]
[393867896,1763050247414,-157.0,0.00077,120]
[393867897,1763050247423,-5000.0,0.000772,120]
[393867898,1763050247432,-4000.0,0.000782,120]
[393867899,1763050247441,-157.087834,0.0007892,2]
[393867900,1763050247451,-200.0,0.00079156,120]
[393867901,1763050247460,-3999.98,0.000792,120]
[393867902,1763050247469,-200.0,0.0007937,120]
[393867903,1763050247478,-547.95760282,0.00079442,7]
[393867904,1763050247488,-269.07997144,0.00079452,120]
[393867905,1763050247497,-229.68008341,0.00079452,120]
[393867906,1763050247507,-172.2750575,0.00079452,120]
[393867907,1763050247516,-408.43285201,0.00079452,120]
[393867908,1763050247526,-474.44892467,0.00079452,120]
[393867909,1763050247535,-377.30870986,0.00079452,120]
[393867910,1763050247544,-496.01830801,0.00079452,120]
[393867911,1763050247553,-223.76349522,0.00079452,120]
[393867912,1763050247562,-492.46968448,0.00079452,120]
[393867913,1763050247572,-475.40764716,0.00079452,60]
[393867914,1763050247581,-470.40982034,0.00079452,120]
[393867915,1763050247591,-224.95046767,0.00079452,120]
[393867916,1763050247601,-176.0102657,0.00079452,120]
[393867917,1763050247611,-418.9223658,0.00079452,120]
[393867918,1763050247620,-213.15597479,0.00079452,120]
[393867919,1763050247631,-300.52662484,0.00079452,120]
[393867920,1763050247640,-176.71494199,0.00079452,120]
[393867921,1763050247650,-403.295,0.00079452,120]
[393867922,1763050247660,-327.96935272,0.00079452,120]
[393867923,1763050247669,-310.05854191,0.00079452,120]
[393867924,1763050247678,-408.78784649,0.00079452,120]
[393867925,1763050247687,-327.80780379,0.00079452,120]
[393867926,1763050247696,-419.45329007,0.00079452,120]
[393867927,1763050247705,-407.52481974,0.00079452,120]
[393867928,1763050247715,-444.55129172,0.00079452,120]
[393867929,1763050247724,-201.98985551,0.00079452,120]
[393867930,1763050247733,-247.17809107,0.00079452,120]
[393867931,1763050247742,-393.87970069,0.00079452,120]
[393867932,1763050247753,-373.44165733,0.00079452,120]
[393867933,1763050247762,-385.2143332,0.00079452,120]
[393867934,1763050247771,-179.41929419,0.00079452,100]
[393867935,1763050247780,-480.13928267,0.00079452,120]
[393867936,1763050247789,-500.0,0.00079452,120]
[393867937,1763050247798,-500.0,0.00079452,120]
[393867938,1763050247807,-500.0,0.00079452,120]
[393867939,1763050247817,-500.0,0.00079452,120]
[393867940,1763050247826,-246.54402207,0.00079452,120]
[393867941,1763050247835,-20.80042738,0.00079452,120]
[393867942,1763050247848,-245.34888679,0.00079452,120]
[393867943,1763050247857,-302.84316289,0.00079452,120]
[393867944,1763050247866,-367.74024232,0.00079452,120]
[393867945,1763050247874,-95.467708,0.00079452,120]
[393867946,1763050247886,-58.23214458,0.00079452,120]
[393867947,1763050247894,-375.8844537,0.00079452,120]
[393867948,1763050247903,-223.61070958,0.00079452,120]
[393867949,1763050247912,-415.27330909,0.00079452,120]
[393867950,1763050247922,-153.00048766,0.00079452,120]
[393867951,1763050247931,-394.75347942,0.00079452,120]
[393867952,1763050247940,-411.96897686,0.00079452,120]
[393867953,1763050247949,-232.69528833,0.00079452,120]
[393867954,1763050286544,309.3812,0.0004,2]
[393867973,1763050346488,500.0,0.00036872,30]
[393867974,1763050346848,504.0906085,0.00037494,30]
[393867975,1763050353247,563.23287203,0.00034492,7]
[393867976,1763050446583,743.0,0.0004,2]
[393867977,1763050637479,505.68788042,0.00037143,30]
[393867978,1763050663560,160.0,0.00039,2]
[393867979,1763050723742,150.0,0.00037848,20]
[393867999,1763050805339,2000.0,0.00037878,20]
[393868036,1763051198729,194.550567,0.00013699,2]
[393868037,1763051198990,194.550567,0.00020187,2]
[393868038,1763051199565,194.550567,0.00026676,2]
[393868039,1763051199788,194.550567,0.00033165,2]
[393868040,1763051200026,194.550567,0.00039654,2]
[393868045,1763051230152,-194.550567,0.00046143,2]
[393868046,1763051230175,-1097.0,0.0005,120]
[393868047,1763051230197,-194.550567,0.00052632,2]
[393868048,1763051230220,-194.550567,0.0005912,2]
[393868049,1763051230241,-2000.0,0.0006,120]
[393868050,1763051230264,-1000.0,0.0006,120]
[393868051,1763051230287,-1000.0,0.00061,120]
[393868052,1763051230308,-1000.0,0.00062,120]
[393868053,1763051230338,-1000.0,0.00063,120]
[393868054,1763051230362,-3000.0,0.00065,120]
[393868055,1763051230385,-371.8126424,0.00065438,2]
[393868056,1763051230408,-194.550567,0.00065609,2]
[393868057,1763051230431,-5000.0,0.0007,120]
[393868058,1763051230456,-1000.0,0.0007,120]
[393868059,1763051230477,-194.550567,0.00072098,120]
[393868060,1763051230497,-161.0,0.00074065,120]
[393868061,1763051230518,-5000.0,0.00075,120]
[393868062,1763051230539,-281.0,0.00075,30]
[393868063,1763051230565,-5000.0,0.000752,120]
[393868064,1763051230588,-5000.0,0.000762,120]
[393868065,1763051230610,-5000.0,0.000762,120]
[393868066,1763051230638,-500.0,0.00077199,7]
[393868067,1763051230662,-581.49604822,0.00077199,120]
[393868068,1763051230684,-5000.0,0.000772,120]
[393868069,1763051230705,-5000.0,0.000772,120]
[393868070,1763051230725,-161.0,0.00077768,120]
[393868071,1763051230747,-151.0,0.00078,33]
[393868072,1763051230767,-294.42584774,0.00078199,120]
[393868073,1763051230788,-4000.0,0.000782,120]
[393868074,1763051230813,-194.550567,0.00078587,120]
[393868075,1763051230836,-151.0,0.00079,42]
[393868076,1763051230861,-35929.21163891,0.00079,120]
[393868077,1763051230884,-4999.98,0.000792,120]
[393868078,1763051230907,-5000.0,0.000792,120]
[393868079,1763051230929,-5000.0,0.000792,120]
[393868080,1763051230953,-157.087835,0.00079304,2]
[393868081,1763051230976,-2013.59418237,0.00079332,7]
[393868082,1763051230999,-32217.5069179,0.00079342,7]
[393868083,1763051231022,-202.35,0.00079342,120]
[393868084,1763051231047,-14972.24633946,0.00079352,2]
[393868085,1763051244706,500.0,0.0004,2]
[393868086,1763051246096,-200.0,0.00079193,34]
[393868087,1763051246117,-1037.39286826,0.000793,6]
[393868088,1763051246139,-762027.75366054,0.00079352,2]
[393868089,1763051246159,-151.0,0.000794,44]
[393868090,1763051246181,-151.0,0.000794,48]
[393868091,1763051246202,-151.0,0.000794,32]
[393868092,1763051246371,-151.0,0.000794,32]
[393868093,1763051246394,-151.0,0.000794,41]
[393868094,1763051246414,-151.0,0.000794,44]
[393868095,1763051246435,-151.0,0.000794,41]
[393868096,1763051246457,-151.0,0.000794,31]
[393868097,1763051246476,-151.0,0.000794,31]
[393868098,1763051246496,-392.06,0.00079441,30]
[393868099,1763051246517,-326.72,0.00079441,30]
[393868100,1763051246538,-272.26,0.00079441,30]
[393868101,1763051246558,-226.89,0.00079441,30]
[393868102,1763051246578,-189.07,0.00079441,30]
[393868103,1763051246604,-157.56,0.00079441,30]
[393868104,1763051246625,-787.82,0.00079441,30]
[393868105,1763051246646,-6040.78254711,0.00079442,7]
[393868106,1763051246666,-1000.0,0.00079451,120]
[393868107,1763051246688,-1000.0,0.00079451,120]
[393868108,1763051246707,-1000.0,0.00079451,120]
[393868109,1763051246728,-255.39,0.00079451,120]
[393868110,1763051246748,-167.19,0.00079451,120]
[393868111,1763051246767,-151.0,0.00079451,120]
[393868112,1763051246786,-250.0,0.00079451,60]
[393868113,1763051246809,-250.0,0.00079451,120]
[393868114,1763051246833,-250.0,0.00079451,120]
[393868115,1763051246852,-151.0,0.00079451,120]
[393868116,1763051246873,-151.0,0.00079451,120]
[393868117,1763051246897,-250.0,0.00079451,120]
[393868118,1763051246918,-156.587,0.00079451,120]
[393868119,1763051246941,-250.0,0.00079451,120]
[393868120,1763051246961,-151.0,0.00079451,120]
[393868121,1763051246982,-250.0,0.00079451,120]
[393868122,1763051247002,-151.0,0.00079451,120]
[393868123,1763051247023,-250.0,0.00079451,120]
[393868124,1763051247043,-250.0,0.00079451,120]
[393868125,1763051247064,-250.0,0.00079451,120]
[393868126,1763051247085,-151.0,0.00079451,120]
[393868127,1763051247106,-250.0,0.00079451,120]
[393868128,1763051247127,-250.0,0.00079451,120]
[393868129,1763051247147,-151.0,0.00079451,120]
[393868130,1763051247167,-250.0,0.00079451,120]
[393868131,1763051247188,-151.0,0.00079451,120]
[393868132,1763051247209,-250.0,0.00079451,120]
[393868133,1763051247229,-151.0,0.00079451,120]
[393868134,1763051247250,-250.0,0.00079451,120]
[393868135,1763051247268,-160.60387576,0.00079451,120]
[393868136,1763051247290,-250.0,0.00079451,120]
[393868137,1763051247313,-250.0,0.00079451,120]
[393868138,1763051247336,-250.0,0.00079451,120]
[393868139,1763051247356,-414.0,0.00079451,120]
[393868140,1763051247378,-151.0,0.00079451,120]
[393868141,1763051247398,-250.0,0.00079451,120]
[393868142,1763051247420,-429.31800001,0.00079451,120]
[393868143,1763051247439,-151.0,0.00079451,120]
[393868144,1763051247459,-2041.93020868,0.00079451,120]
[393868145,1763051247479,-151.0,0.00079451,120]
[393868146,1763051247503,-250.0,0.00079451,120]
[393868147,1763051247522,-151.0,0.00079451,120]
[393868148,1763051247542,-156.58700001,0.00079451,120]
[393868149,1763051247562,-152.12889378,0.00079451,120]
[393868150,1763051247584,-151.0,0.00079451,120]
[393868151,1763051247606,-151.0,0.00079451,120]
[393868152,1763051247628,-151.0,0.00079451,120]
[393868153,1763051247652,-156.587,0.00079451,120]
[393868154,1763051247671,-162.380719,0.00079451,120]
[393868155,1763051247691,-168.3888056,0.00079451,120]
[393868156,1763051247712,-174.61919141,0.00079451,120]
[393868157,1763051247732,-181.08010149,0.00079451,120]
[393868158,1763051247752,-187.78006525,0.00079451,120]
[393868159,1763051247780,-194.72792766,0.00079451,120]
[393868160,1763051247801,-201.93286099,0.00079451,120]
[393868161,1763051247825,-209.40437684,0.00079451,120]
[393868162,1763051247846,-217.15233878,0.00079451,120]
[393868163,1763051247870,-232.15645304,0.00079452,120]
[393868165,1763051247896,-253.82041033,0.00079452,120]
[393868166,1763051247918,-178.82981054,0.00079452,120]
[393868167,1763051247939,-460.0,0.00079452,120]
[393868168,1763051247959,-434.49139621,0.00079452,120]
[393868169,1763051247980,-185.37911794,0.00079452,120]
[393868170,1763051248000,-234.39257465,0.00079452,120]
[393868171,1763051248020,-299.05599992,0.00079452,120]
[393868172,1763051248041,-235.56794442,0.00079452,120]
[393868173,1763051248061,-480.0,0.00079452,120]
[393868174,1763051248085,-480.0,0.00079452,120]
[393868175,1763051248106,-483.84316371,0.00079452,120]
[393868176,1763051248126,-273.12722705,0.00079452,120]
[393868177,1763051248147,-184.18707144,0.00079452,120]
[393868178,1763051248168,-367.18385589,0.00079452,120]
[393868179,1763051248187,-494.72215429,0.00079452,120]
[393868180,1763051248206,-222.97836362,0.00079452,120]
[393868181,1763051248224,-212.56409202,0.00079452,120]
[393868182,1763051248245,-452.72449376,0.00079452,120]
[393868183,1763051248264,-405.3913905,0.00079452,120]
[393868184,1763051248283,-498.87042179,0.00079452,120]
[393868185,1763051248305,-467.81003619,0.00079452,120]
[393868186,1763051248328,-230.10428992,0.00079452,120]
[393868187,1763051248351,-326.40405101,0.00079452,120]
[393868188,1763051248374,-327.62025997,0.00079452,120]
[393868189,1763051248395,-172.44649823,0.00079452,120]
[393868190,1763051248415,-190.89926962,0.00079452,120]
[393868191,1763051248436,-386.17822818,0.00079452,120]
[393868192,1763051248457,-397.3518463,0.00079452,120]
[393868193,1763051248476,-458.01521848,0.00079452,120]
[393868194,1763051248496,-365.49237338,0.00079452,120]
[393868195,1763051248516,-437.47867568,0.00079452,120]
[393868196,1763051248536,-428.92315051,0.00079452,120]
[393868197,1763051248556,-403.96229914,0.00079452,120]
[393868198,1763051248577,-177.29395327,0.00079452,120]
[393868199,1763051248597,-300.61860613,0.00079452,120]
[393868200,1763051248617,-398.99978711,0.00079452,120]
[393868201,1763051248636,-333.71994481,0.00079452,120]
[393868202,1763051248655,-403.06726857,0.00079452,120]
[393868203,1763051248674,-480.24706469,0.00079452,120]
[393868204,1763051248693,-385.31277395,0.00079452,120]
[393868205,1763051248712,-492.1646033,0.00079452,120]
[393868206,1763051248731,-360.75250611,0.00079452,120]
[393868207,1763051248750,-263.21476731,0.00079452,120]
[393868208,1763051248770,-234.1417422,0.00079452,120]
[393868209,1763051248790,-222.04424015,0.00079452,120]
[393868210,1763051248810,-381.24512007,0.00079452,120]
[393868211,1763051248832,-243.56130789,0.00079452,120]
[393868212,1763051248852,-310.46584688,0.00079452,120]
[393868213,1763051248872,-323.07227051,0.00079452,120]
[393868214,1763051248892,-166.42986087,0.00079452,120]
[393868215,1763051248913,-372.33262348,0.00079452,120]
[393868216,1763051248933,-308.82891773,0.00079452,120]
[393868217,1763051248953,-371.98983744,0.00079452,120]
[393868218,1763051248974,-227.45784343,0.00079452,120]
[393868219,1763051248996,-300.86721482,0.00079452,120]
[393868220,1763051249016,-231.75298192,0.00079452,120]
[393868221,1763051249036,-479.53916181,0.00079452,120]
[393868222,1763051249056,-233.57129123,0.00079452,120]
[393868223,1763051249079,-469.34103288,0.00079452,120]
[393868224,1763051249101,-387.96364349,0.00079452,120]
[393868225,1763051249124,-322.81114224,0.00079452,120]
[393868226,1763051249145,-408.32676093,0.00079452,120]
[393868227,1763051249165,-389.39058057,0.00079452,120]
[393868228,1763051249185,-380.24210283,0.00079452,120]
[393868229,1763051249205,-489.99119829,0.00079452,120]
[393868230,1763051249224,-427.14553794,0.00079452,120]
[393868231,1763051249244,-364.73543644,0.00079452,120]
[393868232,1763051249263,-419.42736324,0.00079452,120]
[393868233,1763051249283,-495.97064784,0.00079452,120]
[393868234,1763051249307,-397.45871435,0.00079452,120]
[393868235,1763051249332,-341.14468068,0.00079452,120]
[393868236,1763051249351,-206.88644683,0.00079452,120]
[393868237,1763051249372,-263.53424056,0.00079452,120]
[393868238,1763051249399,-428.17596672,0.00079452,120]
[393868239,1763051249420,-151.0,0.00079452,120]
[393868240,1763051249440,-426.99800988,0.00079452,120]
[393868241,1763051249460,-151.0,0.00079452,120]
[393868242,1763051249480,-354.11441804,0.00079452,120]
[393868243,1763051249501,-193.53706196,0.00079452,120]
[393868244,1763051249522,-151.0,0.00079452,120]
[393868245,1763051249542,-257.97748593,0.00079452,120]
[393868246,1763051249562,-221.50190868,0.00079452,120]
[393868247,1763051249584,-323.78841583,0.00079452,120]
[393868248,1763051249604,-375.7661312,0.00079452,120]
[393868249,1763051249625,-385.26358469,0.00079452,7]
[393868250,1763051249646,-303.10785081,0.00079452,120]
[393868251,1763051249666,-276.6983946,0.00079452,120]
[393868252,1763051249686,-353.79920909,0.00079452,120]
[393868253,1763051249706,-421.52518161,0.00079452,120]
[393868254,1763051249726,-393.53704089,0.00079452,120]
[393868255,1763051249746,-426.97084108,0.00079452,120]
[393868256,1763051249765,-442.7583678,0.00079452,120]